Cogmind - Beta 14 @@@ ROGUE MODE // 2024.10.12 @ 10:45:10 Player: Thqwib Result: Self-destructed Performance ------------- Evolutions (1) 500 Regions Visited (2) 400 Robots Destroyed (10) 50 Value Destroyed (230) 230 Prototype IDs (0) 0 Alien Tech Used (0) 0 Bonus (0) 0 TOTAL SCORE: 1180 Bonus ------- None Cogmind --------- Core Integrity 347/400 Matter 271/300 Energy 29/125 System Corruption 0% Temperature Cool (3) Movement Flying (34) Location -9/Materials Parts ------- > --- POWER (1) -------- Light Ion Engine > --- PROPULSION (4) --- Flight Unit Flight Unit Flight Unit > --- UTILITY (2) ------ Heat Sink Shield Generator > --- WEAPON (2) ------- Assault Rifle Assault Rifle > --- INVENTORY (5) ---- Flight Unit Particle Gun Assault Rifle Grenade Launcher Peak State ------------ > --- POWER ------------ Light Ion Engine > --- PROPULSION ------- Flight Unit Flight Unit Flight Unit Flight Unit > --- UTILITY ---------- Shield Generator > --- WEAPON ----------- Particle Gun Assault Rifle > --- INVENTORY -------- Flight Unit Assault Rifle Assault Rifle Grenade Launcher [Rating: 10] Favorites ----------- Power Light Ion Engine Engine Light Ion Engine Propulsion Aluminum Leg Leg Aluminum Leg Flight Unit Flight Unit Utility Light Armor Plating Device Shield Generator Storage Medium Storage Unit Protection Light Armor Plating Weapon Assault Rifle Energy Gun Particle Gun Ballistic Gun Assault Rifle Build | -11 -10 -9 ------- Run | Yrd Mat Mat Slots Evolved 2 | . . 2 Power . | . . . Propulsion 2 | . . 2 Utility . | . . . Weapon . | . . . Parts Attached 14 | . 7 7 Power 1 | . 1 . Engine 1 | . 1 . Core . | . . . Reactor . | . . . Propulsion 5 | . 2 3 Treads . | . . . Leg . | . . . Wheel . | . . . Hover . | . . . Flight 5 | . 2 3 Utility 4 | . 2 2 Device 2 | . . 2 Storage 1 | . 1 . Processor . | . . . Hackware . | . . . Protection 1 | . 1 . Artifact . | . . . Weapon 4 | . 2 2 Energy Gun 1 | . . 1 Energy Cannon . | . . . Ballistic Gun 3 | . 2 1 Ballistic Cannon . | . . . Launcher . | . . . Special Weapon . | . . . Impact Weapon . | . . . Slashing Weapon . | . . . Piercing Weapon . | . . . Special Melee Weapon . | . . . Unidentified Prototypes . | . . . Parts Lost 2 | . . 2 Power . | . . . Propulsion 2 | . . 2 Utility . | . . . Weapon . | . . . Highest Loss Streak 1 | . . 1 To Critical Strikes . | . . . Average Slot Usage (%) 89 | . 91 82 Engine 13 | . 14 11 Leg 18 | . 24 . Flight 11 | . 3 40 Device 2 | . . 9 Storage 9 | . 12 . Protection 6 | . 8 . Energy Gun 1 | . . 7 Ballistic Gun 25 | . 28 15 Peak Build Rating 10 | . 7 10 Average Rating 6 | . 6 8 On Entrance 5 | 6 6 5 Naked Turns . | . . . Heaviest Build 21 | 13 21 10 Greatest Support 20 | 20 20 16 Greatest Overweight (x) 2 | . 2 . Average Overweight (x) . | . . . Largest Inventory Capacity 10 | . 10 5 Average Capacity 7 | . 8 5 Most Carried 7 | . 7 5 Average Carried 5 | . 6 4 Final Capacity 8 | 8 5 5 Final Carried 6 | 6 5 4 Class Distribution -------------------- 85% | Mutant 14% | Sprinter Dominant Class ---------------- Mutant | -10/Materials Sprinter | -9/Materials Resources | -11 -10 -9 ----------- Run | Yrd Mat Mat Matter Collected 418 | 200 130 88 Remotely . | . . . Salvage Created 377 | . 198 179 Parts 20 | . 10 10 Haulers Intercepted 1 | . 1 . Recyclers Shooed 2 | . 2 . Parts Field Recycled . | . . . Retrieved Matter . | . . . Parts Self-Destructed . | . . . Prevented . | . . . Kills | -11 -10 -9 ------- Run | Yrd Mat Mat Combat Hostiles Destroyed 8 | . 4 4 Guns 8 | . 4 4 Classes Destroyed 5 | . 4 1 Hauler 1 | . 1 . Recycler 1 | . 1 . Swarmer 3 | . 3 . Grunt 3 | . 1 2 Sentry 2 | . . 2 Best Kill Streak 4 | . 4 4 Combat Bots Only 4 | . 3 4 Max Kills in Single Turn 1 | . 1 1 Gunslinging . | . . . Exploded . | . . . Melee . | . . . Uniques/NPCs Destroyed . | . . . Combat | -11 -10 -9 -------- Run | Yrd Mat Mat Hostile Shots Fired 46 | . 9 37 Missed 19 | . 3 16 Damage Taken 264 | . 49 215 Core 59 | . 6 53 Absorbed by Shields 76 | . . 76 Core Remaining (%) 98 | 100 97 . Volleys Fired 28 | . 15 13 Largest 2 | . 2 2 Hottest 85 | . 40 85 Shots Fired 56 | . 30 26 Gun 56 | . 30 26 Cannon . | . . . Launcher . | . . . Special . | . . . Kinetic 49 | . 30 19 Thermal 7 | . . 7 Explosive . | . . . Electromagnetic . | . . . Robot Hit Streak 9 | . 4 9 Robot Miss Streak 4 | . 4 3 Penetration Max . | . . . Secondary Targets 3 | . 1 2 Max Gunslinging Chain 1 | . 1 1 Shots Hit Robots 36 | . 16 20 Core Hits 16 | . 10 6 Critical Kills 1 | . 1 . Critical Parts Destroyed . | . . . Critical Strikes 2 | . 1 1 Burn 1 | . . 1 Destroy 1 | . 1 . Melee Attacks . | . . . Impact . | . . . Slashing . | . . . Piercing . | . . . Sneak Attacks . | . . . Combat Hostiles . | . . . Follow-up Attacks . | . . . Damage Inflicted 429 | . 162 267 Guns 429 | . 162 267 Cannons . | . . . Explosions . | . . . Melee . | . . . Ramming . | . . . Kinetic 353 | . 162 191 Thermal 76 | . . 76 Explosive . | . . . Electromagnetic . | . . . Impact . | . . . Slashing . | . . . Piercing . | . . . Highest Corruption . | . . . Average Corruption . | . . . Corruption Purged . | . . . Corruption Blocked . | . . . Overload Shots . | . . . Overflow Damage . | . . . Projectiles . | . . . Explosions . | . . . Melee . | . . . Knockbacks . | . . . Impact . | . . . Kinetic . | . . . Secondary . | . . . Self-Inflicted Damage . | . . . Shots . | . . . Rammed . | . . . Targets Rammed . | . . . Kicked . | . . . Crushed . | . . . Highest Temperature 138 | . 6 138 Average Temperature 53 | . 4 74 Received Heat Transfer 86 | . . 86 Siege Activations . | . . . Robots Corrupted . | . . . Combat Hostiles . | . . . Parts Fried . | . . . Impact Corruptions . | . . . Robots Melted . | . . . Combat Hostiles . | . . . Parts Melted . | . . . Heat Transferred 259 | . . 259 Parts Sabotaged . | . . . Parts Stolen . | . . . Parts Stripped . | . . . Power Chain Reactions . | . . . Alert | -11 -10 -9 ------- Run | Yrd Mat Mat Peak Influence 254 | . 188 254 Initial 79 | . . 79 Average 84 | . 64 148 Maximum Alert Level 1 | . . 1 Low Security (%) 93 | . 100 73 Level 1 6 | . . 26 Level 2 . | . . . Level 3 . | . . . Level 4 . | . . . Level 5 . | . . . High Security . | . . . Max Security . | . . . Squads Dispatched 3 | . . 3 Investigation 1 | . . 1 Extermination . | . . . Reinforcement 2 | . . 2 Assault . | . . . Garrison . | . . . Intercept . | . . . Searches Triggered . | . . . Construction Impeded . | . . . Haulers Reinforced . | . . . Active Scanning Responses . | . . . Cargo Convoy Interrupts . | . . . Stealth | -11 -10 -9 --------- Run | Yrd Mat Mat Distress Signals 1 | . . 1 Communications Jammed . | . . . Distress Signals . | . . . Times Spotted 23 | . 8 15 Peak Tracking Total 10 | . 3 10 Tactical Retreats 2 | . 1 1 Traps | -11 -10 -9 ------- Run | Yrd Mat Mat Traps Triggered . | . . . Indirectly . | . . . Trap Hack Attempts . | . . . Triggered . | . . . Disarmed . | . . . Reprogrammed . | . . . Reused . | . . . Traps Extracted . | . . . Installed . | . . . Triggered . | . . . Machines | -11 -10 -9 ---------- Run | Yrd Mat Mat Machines Disabled . | . . . Max in Single Turn . | . . . Machines Repaired . | . . . Machines Dismantled . | . . . Machines Sabotaged . | . . . Overloaded Fab Kills . | . . . Hacking | -11 -10 -9 --------- Run | Yrd Mat Mat Machines Accessed 4 | . 3 1 Terminals 3 | . 3 . Fabricators . | . . . Repair Stations . | . . . Recycling Units 1 | . . 1 Scanalyzers . | . . . Garrison Access . | . . . Total Hacks 16 | . 13 3 Successful 9 | . 7 2 Failed 7 | . 6 1 Catastrophic . | . . . Database Lockouts . | . . . Manual 12 | . 10 2 Terminals 13 | . 13 . Fabricators . | . . . Repair Stations . | . . . Recycling Units 3 | . . 3 Scanalyzers . | . . . Garrison Access . | . . . Terminal Hacks 4 | . 4 . Alert Level 1 | . 1 . Patrol Status 1 | . 1 . Hauler Manifests 1 | . 1 . Zone Layout 1 | . 1 . Fabricator Hacks . | . . . Repair Station Hacks . | . . . Recycling Unit Hacks 1 | . . 1 Report Inventory 1 | . . 1 Scanalyzer . | . . . Garrison Access Hacks . | . . . Unauthorized Hacks 4 | . 3 1 Terminals 3 | . 3 . Botnet 3 | . 3 . Fabricators . | . . . Repair Stations . | . . . Recycling Units 1 | . . 1 Tunnel 1 | . . 1 Scanalyzers . | . . . Garrison Access . | . . . Data Cores Recovered . | . . . Used . | . . . Hacking Detections 3 | . 3 . Full Trace Events . | . . . Feedback Events . | . . . Feedback Blocked . | . . . Robot Schematics Acquired . | . . . Robots Built . | . . . Authchips . | . . . Time . | . . . Total Robot Build Rating . | . . . Part Schematics Acquired . | . . . Parts Built . | . . . Authchips . | . . . Time . | . . . Total Part Build Rating . | . . . Parts Repaired . | . . . Time . | . . . Parts Recycled . | . . . Recycled Matter . | . . . Retrieved Matter . | . . . Retrieved Components . | . . . Parts Scanalyzed . | . . . Part Schematics Acquired . | . . . Parts Damaged . | . . . Bothacking | -11 -10 -9 ------------ Run | Yrd Mat Mat Used RIF Installer . | . . . Robots Hacked . | . . . Non-combat . | . . . Combat . | . . . Robot Hacks Applied . | . . . Relay Couplers Released . | . . . Fabnet Peak Effective % . | . . . Robots Rewired . | . . . Allies Hacked . | . . . Hacks Repelled . | . . . Allies | -11 -10 -9 -------- Run | Yrd Mat Mat Total Allies . | . . . Largest Group . | . . . Highest-Rated Group . | . . . Highest-Rated Ally . | . . . Total Orders . | . . . Ally Attacks . | . . . Total Damage . | . . . Kills . | . . . Allies Corrupted . | . . . Allies Melted . | . . . Intel | -11 -10 -9 ------- Run | Yrd Mat Mat Robot Analysis Total . | . . . Derelict Logs Recovered . | . . . Drone Launches . | . . . Drone Recoveries . | . . . Exploration | -11 -10 -9 ------------- Run | Yrd Mat Mat Turns Passed 485 | . 370 115 Spaces Moved 400 | 1 241 158 Core . | . . . Treads . | . . . Legs 186 | 1 185 . Wheels . | . . . Hover . | . . . Flight 214 | . 56 158 Fastest Speed 31 | 120 37 31 Average Speed 75 | 120 103 32 Slowest Speed 200 | 120 200 34 Overloaded Moves . | . . . Propulsion Burnouts . | . . . Robots Hopped 4 | . . 4 Cave-ins Triggered . | . . . Exploration Rate (%) 20 | 2 35 23 Regions Visited 2 Branch Regions . Pre-discovered Areas 1 | . . 1 Known Exits Taken . | . . . Unknown Exits Taken 2 | 1 1 . Scrap Searched . | . . . Spaces Dug . | . . . Terrain Destroyed . | . . . Melee . | . . . Projectile . | . . . AOE . | . . . Terrain Rammed . | . . . Walls Destroyed . | . . . Machines Disabled . | . . . Actions | -11 -10 -9 --------- Run | Yrd Mat Mat Total 526 | . 336 190 Wait 69 | . 56 13 Move 390 | . 240 150 Hop 4 | . . 4 Pick Up 8 | . 6 2 Fast Attach 7 | . 4 3 Attach 3 | . . 3 Detach . | . . . Swap 4 | . 3 1 Drop 13 | . 12 1 Fire 28 | . 15 13 Melee . | . . . Ram . | . . . Kick . | . . . Crush . | . . . Escape Stasis . | . . . Rewire . | . . . Trap . | . . . Miscellaneous . | . . . Route ------- -11/Scrapyard -10/Materials -9/Materials History --------- Turn | Location | Event 1 | -11/Scrapyard | Discovered new exit (range 0) 1 | -11/Scrapyard | Entered Materials 318 | -10/Materials | Build established: Mutant 357 | -10/Materials | Discovered new exit (range 10) 371 | -10/Materials | Entered another Materials area 371 | -9/Materials | Evolved 2 slots: Propulsion x2 486 | -9/Materials | Self-destructed Last Messages --------------- 00449_ G-34 Mercenary destroyed. 00449_ Switching to secondary target: Y-45 Defender. 00451_ R-06 Scavenger collects Lgt. Treads. 00455_ Y-45 Defender destroyed. 00458_ G-34 Mercenary destroyed. 00461_ Acquired 36 matter. 00462_ Acquired Heat Sink. 00464_ Acquired 52 matter. 00472_ K-01 Serf collects debris. 00473_ O-16 Technician sends out distress signal. 00473_ O-16 Technician: "IFF HANDSHAKE FAILED. SECURING TERMINAL." 00476_ K-01 Serf collects debris. 00477_ Acquired Flight Unit. 00479_ Flight Unit destroyed. 00479_ ALERT: Hostiles spotted, dispatching reinforcements to Terminal M007. 00480_ K-01 Serf collects debris. Map ----- +----------------------------------------------------+ | | | | | | | | | | | | | | | | | | | | | | | | | | | | | | | | | ?????????????????????????????????????????????????? | | ?????????????????????????????????????????????????? | | ?????????????????????????????????????????????????? | | ??????????????????#########??????????????????????? | | ??????????????????# #??????????????????????? | | ??????????????????# ##### #??????????????????????? | | ??????????????????# #???# #??????????????????????? | | ??????????????????# #???# #??????????????????????? | | ??????????????????# #?###/######?????????????????? | | ??????????????????# #?# @Y #?????????????????? | | ??????????????????# #?# """ #????????????????? | | ????????##????????# #?#o"T" /##????????????????? | | ????????? ????### ### #?????????????????? | | ????????? """??# ] # #?????????????????? | | ???????? """ # # #?????????????????? | | ???????? """ + T + ]]] #?????????????????? | | ???????? """ # # ]]] #?????????????????? | | ???????? ??# # ]]] #?????????????????? | | ???????# "T"????## ###########?????????????????? | | ???????? "???????# #??? ?????????????????????? | | ?????????????????# #?? """?????????????????????? | | ??????????######?# #? """ ????????????????????? | | ???????#### ## # """ #???????????????????? | | ?????? "" # #???????????????????? | | ???? T + """ ????????????????????? | | ???? # """ ????????????????????? | | ???? ## ### ## """ ????????????????????? | | ??????????###+##??# #?? ????????????????????? | | ??????????????????# #?? #???????????????????? | | ??????????????????# #??? #???????????????????? | | ??????????????????# #???######???????????????????? | | ??????????????????# #????????????????????????????? | | ??????????????????# #???????????????? ???????????? | | ??????????????????# #??????????????? ??????????? | +----------------------------------------------------+ Best States ------------- Heat Dissipation 38 Energy Generation 10 Energy Capacity 250 Matter Stores 300 Matter Capacity 300 Sight Range 16 Terrain Scan Density 10 Armor Coverage 150 Evasion (%) 63 Item Schematics ----------------- None Robot Schematics ------------------ None Fabricated ------------ Nothing Alien Tech Used ----------------- None Achievements -------------- None Challenges ------------ None Game ------ Seed HackingThrowingFocus Manual? 0 Play Time 00:12:56 Cumulative 49.4 hours Start 2024.10.12 @ 10:34:52 End 2024.10.12 @ 10:45:10 Sessions 1 Manual Loads 0 Difficulty Rogue Special Mode None Game No. 37 Rogue 37 Adventurer 0 Explorer 0 Win Type - Total 0 Types 0/0/0/0/0/0/0/0/0 Lore% 15 Gallery% 40 Achievement% 30 Wizard Run 0 Options --------- Layout 2 ASCII 0 Keyboard 0 Movement Arrows Keybinds 0 Fullscreen 2 Font 24/Crisp Map View 50x44 Zoom Use 0% Tactical HUD 1 Map Filters NONE Filters NONE Steam 0 RUN: d85f4e8a-42d2-4a10-a8ff-45afe730aa10